bitfinex/quotes_ETHUSD_20250110
["timestamp","ask_amount","ask_price","bid_price","bid_amount"]
[1736545300072,0.07736984,3273.6,3273.0,0.58054919]
[1736545300455,0.07736984,3273.6,3273.0,0.55]
[1736545304385,0.07736984,3273.6,3273.0,0.58054921]
[1736545304592,0.07736984,3273.6,3273.0,1.02489113]
[1736545305793,3.8879,3273.4,3272.7,0.217]
[1736545305968,1.21111585,3273.7,3272.6,3.0]
[1736545305969,3.88796,3273.3,3272.6,3.0]
[1736545306158,3.88796,3273.3,3272.5,5.25]
[1736545306357,0.91020768,3273.2,3272.6,0.55]
[1736545309090,0.91020768,3273.2,3272.5,0.5575]
[1736545309393,0.8329,3273.2,3272.5,0.5575]
[1736545309578,0.8329,3273.2,3272.5,0.0075]
[1736545310295,0.8329,3273.2,3272.6,3.05564]
[1736545311581,0.8329,3273.2,3272.7,1.3696532]
[1736545311773,0.8329,3273.2,3272.7,1.3391]
[1736545311973,0.07697751,3273.1,3272.7,1.3391]
[1736545312173,0.8329,3273.2,3272.7,1.3391]
[1736545312486,0.07704114,3273.1,3272.7,1.83088681]
[1736545312859,0.8329,3273.2,3272.7,1.83088681]
[1736545313061,0.0769764,3273.0,3272.7,1.83088681]
[1736545313597,0.8329,3273.2,3272.7,1.83088681]
[1736545313800,0.07691165,3272.9,3272.7,1.83088681]
[1736545313976,0.8329,3273.2,3272.9,0.55]
[1736545314163,0.07704114,3273.1,3272.9,0.55]
[1736545315822,0.07704114,3273.1,3272.6,0.217]
[1736545318030,0.8329,3273.2,3272.7,0.5575]
[1736545318176,0.07673034,3273.0,3272.7,0.5575]
[1736545318374,0.8329,3273.2,3272.8,0.383009]
[1736545318712,0.07686627,3273.1,3272.8,0.383009]
[1736545321116,0.07686627,3273.1,3272.8,3.46903058]
[1736545321319,0.07686627,3273.1,3272.9,3.05538]
[1736545321472,0.8245,3273.7,3273.1,0.55]
[1736545321811,0.07695445,3273.6,3273.2,0.22105406]
[1736545321980,0.07695445,3273.6,3273.3,0.55]
[1736545322168,6.2045,3273.9,3273.3,0.55]
[1736545322400,6.2045,3273.9,3273.2,0.22105406]
[1736545322401,0.07716071,3273.8,3273.2,0.58054898]
[1736545323186,0.07716071,3273.8,3273.3,0.0075]
[1736545323512,0.07716071,3273.8,3273.3,0.5575]
[1736545323887,0.07716071,3273.8,3273.4,0.7838]
[1736545330147,0.07716071,3273.8,3273.5,0.0075]
[1736545332409,0.07449126,3273.7,3273.5,0.0075]
[1736545332741,0.8043,3274.1,3273.5,0.0075]
[1736545333122,0.07468543,3274.0,3273.5,0.0075]
[1736545336869,0.07468543,3274.0,3273.7,0.0075]
[1736545337081,0.7869,3274.3,3273.7,0.31753067]
[1736545337291,0.0746523,3273.9,3273.7,0.0075]
[1736545337428,0.7869,3274.3,3273.7,0.0075]
[1736545337631,0.07458757,3273.8,3273.7,0.0075]
[1736545337832,0.7869,3274.3,3273.7,0.0075]
[1736545338084,0.07467467,3273.8,3273.7,0.0075]
[1736545338233,0.7869,3274.3,3273.7,0.31678067]
[1736545338570,0.07460994,3273.8,3273.7,0.0075]
[1736545338863,0.07469812,3273.8,3273.4,0.7838]
[1736545339029,0.7973,3273.9,3273.5,0.0075]
[1736545339233,0.07487867,3273.7,3273.5,0.0075]
[1736545339435,0.7973,3273.9,3273.5,0.0075]
[1736545339765,0.07474691,3273.6,3273.5,0.0075]
[1736545339966,0.7973,3273.9,3273.5,0.0075]
[1736545340166,0.07494927,3273.6,3273.5,0.0075]
[1736545340366,0.7973,3273.9,3273.5,0.0075]
[1736545340569,0.07483755,3273.6,3273.5,0.0075]
[1736545340871,0.0748599,3273.6,3273.5,0.0075]
[1736545341071,0.7973,3273.9,3273.5,0.0075]
[1736545341371,0.07461909,3273.6,3273.5,0.0075]
[1736545341531,0.7973,3273.9,3273.5,0.0075]
[1736545342141,0.07494973,3273.8,3273.5,0.0075]
[1736545345941,0.7961,3274.2,3273.5,0.0075]
[1736545346445,0.07523264,3274.1,3273.5,0.0075]
[1736545351685,0.07523264,3274.1,3273.5,3.06233]
[1736545357825,0.07523264,3274.1,3273.5,0.0075]
[1736545371750,0.07523264,3274.1,3273.6,0.03054599]
[1736545371957,0.07523264,3274.1,3273.7,0.8193]
[1736545372132,8.06327608,3274.6,3273.7,0.8193]
[1736545372335,0.06989859,3274.0,3273.7,0.8193]
[1736545372529,8.06327608,3274.6,3273.7,0.8193]
[1736545373046,0.07022213,3274.5,3273.7,0.8193]
[1736545374421,1.21095608,3274.4,3273.7,0.8193]
[1736545374622,0.07012639,3274.3,3273.7,0.8193]
[1736545376325,0.07012639,3274.3,3273.8,0.3904566]
[1736545376524,1.21095608,3274.5,3273.8,0.3904566]
[1736545376762,0.06988811,3274.2,3273.7,0.8193]
[1736545376958,4.26487608,3274.5,3273.7,0.8193]
[1736545377598,0.07001753,3274.4,3273.7,0.8193]
[1736545385161,0.07001753,3274.4,3273.7,3.87392]
[1736545385673,0.07001753,3274.4,3273.7,0.8193]
[1736545396507,3.12403753,3274.4,3273.7,0.8193]
[1736545399714,0.07001753,3274.4,3273.7,0.8193]
[1736545400132,0.07001753,3274.4,3273.7,0.84984307]
[1736545400339,0.07001753,3274.4,3273.7,0.8193]
[1736545403527,0.07001753,3274.4,3273.7,0.84984307]
[1736545404718,6.05383,3274.6,3273.7,0.84984307]
[1736545405557,0.06577245,3274.5,3273.7,0.84984307]
[1736545405788,0.06577245,3274.5,3273.9,0.0075]
[1736545405938,0.06577245,3274.5,3274.3,0.0075]
[1736545406138,3.05327,3275.2,3274.6,0.7698]
[1736545406349,6.12979375,3275.3,3274.6,0.7698]
[1736545407249,9.18296375,3275.3,3274.6,0.7698]
[1736545407762,6.12979375,3275.3,3274.9,0.0075]
[1736545407933,6.12979375,3275.3,3275.0,0.7698]
[1736545410875,0.74979375,3275.3,3275.0,0.7698]
[1736545418575,1.98185608,3275.6,3275.0,0.7698]
[1736545420981,0.06553372,3275.5,3275.0,0.7698]
[1736545421183,0.06553372,3275.5,3275.0,1.152889]
[1736545429382,0.06553372,3275.5,3275.1,0.55]
[1736545434911,0.06563318,3275.4,3275.1,0.55]
[1736545435073,4.26364608,3275.8,3275.1,0.55]
[1736545435272,0.06556851,3275.3,3275.1,0.55]
[1736545435512,4.26364608,3275.8,3275.1,0.55]
[1736545435709,0.06578821,3275.2,3275.1,0.55]
[1736545435914,4.26364608,3275.8,3275.1,0.55]
[1736545435915,1.21095608,3275.8,3275.1,0.55]
[1736545436117,0.06578821,3275.2,3275.1,0.55]
[1736545436317,3.05278,3275.7,3275.1,0.55]
[1736545436514,0.06599523,3275.2,3275.1,0.55]
[1736545436818,3.05278,3275.7,3275.1,0.55]
[1736545437017,0.06636069,3275.2,3275.1,0.55]
[1736545437504,3.05278,3275.7,3275.1,0.55]
[1736545437679,0.06550383,3275.2,3275.1,0.55]
[1736545437881,3.05278,3275.7,3275.1,0.55]
[1736545438093,0.06578821,3275.2,3275.1,0.55]
[1736545438295,3.05278,3275.7,3275.1,0.55]
[1736545438507,0.06578821,3275.2,3275.1,0.55]
[1736545438710,3.05278,3275.7,3275.1,0.55]
[1736545438919,0.06578821,3275.2,3275.1,0.55]
[1736545439119,3.05278,3275.7,3275.1,0.55]
[1736545439440,0.06599523,3275.2,3275.1,0.55]
[1736545439643,3.05278,3275.7,3275.1,0.55]
[1736545439780,0.06636069,3275.2,3275.1,0.55]
[1736545439976,3.05278,3275.7,3275.1,0.55]
[1736545440215,0.06636069,3275.2,3275.1,0.55]
[1736545440435,3.05278,3275.7,3275.1,0.55]
[1736545440582,0.06636069,3275.2,3275.1,0.55]
[1736545440782,3.05278,3275.7,3275.1,0.55]
[1736545441007,0.06550383,3275.2,3275.1,0.55]
[1736545441206,1.21095608,3275.8,3275.1,0.55]
[1736545441411,4.26365608,3275.8,3275.1,0.55]
[1736545441578,0.06608867,3275.7,3275.1,0.55]
[1736545442720,1.21095608,3275.6,3275.1,0.55]
[1736545443088,0.06671783,3275.5,3275.1,0.55]
[1736545446043,3.05278,3275.7,3275.1,0.55]
[1736545446211,0.06610714,3275.6,3275.1,0.55]
[1736545451504,1.21095608,3275.8,3275.1,0.55]
[1736545451846,0.06621376,3275.5,3275.2,0.7908]
[1736545452047,0.06598529,3275.4,3275.2,0.7908]
[1736545452355,5.07029608,3275.4,3274.9,0.55]
[1736545452557,4.26422608,3275.2,3274.7,0.7908]
[1736545452855,1.21095608,3275.0,3274.7,0.7908]
[1736545453152,0.06588048,3274.9,3274.6,0.5575]
[1736545453725,4.26422608,3275.2,3274.6,0.5575]
[1736545453928,0.06554699,3274.8,3274.6,0.5575]
[1736545454125,4.26422608,3275.2,3274.6,0.5575]
[1736545454640,0.06574104,3275.1,3274.6,0.5575]
[1736545458850,0.06574104,3275.1,3274.8,0.55]
[1736545459055,5.07025608,3275.4,3274.8,0.55]
[1736545459619,0.06545638,3275.3,3274.8,0.55]
[1736545461859,0.06545638,3275.3,3274.9,0.0075]
[1736545462166,1.21095608,3275.5,3274.9,0.0075]
[1736545462453,0.06538035,3275.2,3274.9,0.0075]
[1736545462612,1.21095608,3275.5,3274.9,0.0075]
[1736545463059,0.06559913,3275.4,3274.9,0.0075]
[1736545463456,1.21095608,3275.3,3274.9,0.0075]
[1736545463616,0.06564865,3275.2,3274.9,0.0075]
[1736545463820,1.21095608,3275.3,3274.9,0.0075]
[1736545464053,0.06569351,3275.2,3274.9,0.0075]
[1736545464223,1.21095608,3275.3,3274.9,0.0075]
[1736545464656,0.06569351,3275.2,3274.9,0.0075]
[1736545465025,1.21095608,3275.3,3274.9,0.0075]
[1736545465218,3.7935,3275.6,3274.2,5.25]
[1736545465219,5.1423872,3275.1,3274.5,0.7695]
[1736545465464,0.06539643,3275.0,3274.5,0.7695]
[1736545465617,0.06539643,3275.0,3274.6,0.55]
[1736545475654,3.11882643,3275.0,3274.6,0.55]
[1736545476054,3.11882643,3275.0,3274.1,0.61606099]
[1736545476055,0.7599,3274.9,3274.1,0.03053759]
[1736545476266,1.97085608,3274.9,3274.1,0.7985]
[1736545476471,3.11872076,3274.8,3274.1,0.7985]
[1736545476867,3.11872076,3274.8,3274.2,0.55]
[1736545482007,0.06502076,3274.8,3274.2,0.55]
[1736545488679,3.11864076,3274.8,3274.2,0.55]
[1736545488987,0.06502076,3274.8,3274.2,0.55]
[1736545491981,3.11866076,3274.8,3274.2,0.55]
[1736545495616,0.7615,3274.7,3273.9,0.8151]
[1736545495833,0.7615,3274.5,3273.9,0.8151]
[1736545495986,1.97245608,3274.5,3274.0,0.55]
[1736545496188,0.06485854,3274.4,3274.0,0.55]
[1736545496386,0.06485854,3274.4,3273.7,1.388]
[1736545496618,0.06485854,3274.4,3273.9,0.5575]
[1736545500722,0.06485854,3274.4,3274.3,1.3077]
[1736545501026,0.7509,3275.0,3274.3,1.3077]
[1736545501186,0.06433975,3274.4,3274.3,4.36178]
[1736545501398,0.74979375,3275.2,3274.3,3.61158]
[1736545501695,0.74979375,3275.2,3274.5,4.41133]
[1736545501895,0.06480015,3275.1,3274.5,4.41133]
[1736545502425,0.7637,3275.0,3274.5,0.55]
[1736545502731,0.7637,3275.0,3274.4,0.36421184]
[1736545502732,0.7637,3274.8,3274.0,5.25]
[1736545502892,0.06508603,3274.7,3274.0,5.25]
[1736545503088,0.06508603,3274.7,3274.0,6.2378534]
[1736545504118,4.32977211,3274.7,3274.1,0.55]
[1736545504322,0.809,3274.4,3274.1,0.55]
[1736545504522,0.809,3274.4,3273.8,0.5575]
[1736545504712,0.06511791,3274.3,3273.8,0.5575]
[1736545509307,0.06511791,3274.3,3273.8,1.323141]
[1736545512451,0.809,3274.6,3274.0,0.55]
[1736545512812,0.06492551,3274.5,3274.0,0.55]
[1736545515026,3.11882551,3274.5,3274.0,0.55]
[1736545515643,3.11882551,3274.5,3273.8,0.5575]
[1736545516532,4.32978159,3274.5,3273.8,0.5575]
[1736545523122,0.7573,3274.4,3273.8,0.5575]
[1736545523446,0.06302052,3274.3,3273.8,0.5575]
[1736545526459,3.11711052,3274.3,3273.8,0.5575]
[1736545527339,0.06302052,3274.3,3273.8,0.5575]
[1736545527541,0.06302052,3274.3,3273.7,0.5575]
[1736545527867,0.06302052,3274.3,3273.7,1.00213639]
[1736545533231,0.05302052,3274.3,3273.7,1.00213639]
[1736545534736,0.05302052,3274.3,3273.9,0.5575]
[1736545535135,3.0539,3274.5,3273.9,0.5575]
[1736545535435,0.06036549,3274.4,3273.9,0.5575]
[1736545535743,0.06036549,3274.4,3273.9,0.74042364]
[1736545536333,0.06036549,3274.4,3273.9,0.55]
[1736545536533,0.7944,3274.3,3273.9,0.55]
[1736545536851,0.06023609,3274.2,3273.9,0.55]
[1736545537026,0.7944,3274.3,3273.9,0.55]
[1736545537233,0.06020878,3274.1,3273.9,0.55]
[1736545537438,0.7944,3274.3,3273.8,0.0075]
[1736545537956,0.06016167,3274.2,3273.8,0.0075]
[1736545538273,0.7944,3274.3,3273.7,0.0075]
[1736545538432,0.06009695,3274.1,3273.7,0.0075]
[1736545538632,0.7944,3274.3,3273.7,0.0075]
[1736545538834,0.06003224,3274.0,3273.7,0.0075]
[1736545539034,0.7944,3274.3,3273.7,0.0075]
[1736545539263,0.05996752,3273.9,3273.7,0.0075]
[1736545539534,0.0599028,3273.8,3273.7,0.0075]
[1736545539759,0.7944,3274.3,3273.7,0.0075]
[1736545540068,0.06016167,3274.2,3273.7,0.0075]
[1736545540271,0.06016167,3274.2,3273.4,3.05489]
[1736545540569,0.7944,3274.1,3273.3,1.0285]
[1736545540948,0.06003224,3274.0,3273.4,0.5575]
[1736545544755,0.06003224,3274.0,3273.4,0.58804576]
[1736545545078,0.06003224,3274.0,3273.4,1.08525255]
[1736545546362,0.06003224,3274.0,3273.4,0.5575]
[1736545550479,0.8172,3273.6,3272.9,0.8186]
[1736545550783,0.8172,3273.4,3272.7,0.8186]
[1736545550948,0.8172,3273.4,3272.6,0.5575]
[1736545550949,0.05928101,3273.3,3272.6,0.5575]
[1736545552279,0.8179,3273.2,3272.6,0.5575]
[1736545554767,0.05917932,3273.1,3272.6,0.5575]
[1736545554974,0.8179,3273.2,3272.6,0.5575]
[1736545555171,0.8179,3273.2,3272.6,0.0075]
[1736545555369,0.8258,3273.0,3272.2,0.62364274]
[1736545555568,0.05874275,3272.9,3272.3,0.5575]
[1736545556768,0.05874275,3272.9,3272.3,3.5575]
[1736545559655,0.05874275,3272.9,3272.3,0.0075]
[1736545561469,1.21095608,3272.7,3272.0,7.67496776]
[1736545561671,0.8275,3272.6,3272.1,0.76749678]
[1736545561915,0.8275,3272.6,3272.2,0.5575]
[1736545562224,0.05621294,3272.5,3272.2,0.5575]
[1736545562813,0.8275,3272.6,3272.2,0.5575]
[1736545564777,0.05606226,3272.5,3272.2,0.5575]
[1736545565180,0.05606226,3272.5,3272.2,1.21499968]
[1736545566679,0.05606226,3272.5,3271.5,3.8012]
[1736545566680,0.7977,3272.3,3271.5,3.8012]
[1736545566876,3.85368,3272.3,3271.5,3.8012]
[1736545567187,0.05584919,3272.2,3271.6,0.5575]
[1736545573807,0.05584919,3272.2,3271.5,4.46585736]
[1736545573808,0.8075,3272.0,3271.4,5.466]
[1736545574013,0.05481702,3271.9,3271.4,5.466]
[1736545574215,0.05481702,3271.9,3271.5,0.5575]
[1736545576492,0.7624,3271.8,3271.5,0.5575]
[1736545576823,0.0546661,3271.7,3271.5,0.5575]
[1736545577192,0.7624,3271.8,3271.5,0.5575]
[1736545577395,0.05466393,3271.7,3271.5,0.5575]
[1736545577601,0.7624,3271.8,3271.5,0.5575]
[1736545577907,0.05466447,3271.7,3271.5,0.5575]
[1736545578422,0.05457726,3271.6,3271.5,0.5575]
[1736545578627,0.05457726,3271.6,3271.5,0.973596]
[1736545578942,0.7624,3272.0,3271.5,0.973596]
[1736545579328,0.05477168,3271.9,3271.5,0.973596]
[1736545579731,0.05477168,3271.9,3271.5,0.5575]
[1736545580259,0.05477168,3271.9,3271.7,0.5575]
[1736545580622,0.7533,3272.3,3271.7,0.5575]
[1736545580935,0.05430272,3272.2,3271.7,0.5575]
[1736545582576,0.05430272,3272.2,3271.4,0.5466]
[1736545582577,3.86408,3272.1,3271.4,0.5466]
[1736545582727,0.8079,3272.0,3271.4,0.5466]
[1736545583044,3.91862263,3272.0,3271.5,0.5575]
[1736545583864,3.91862263,3272.0,3271.3,0.5575]
[1736545585351,0.05448263,3272.0,3271.7,0.5575]
[1736545585510,0.05448263,3272.0,3271.9,0.5575]
[1736545585850,0.05416517,3272.0,3271.9,0.0075]
[1736545586310,0.8079,3272.4,3271.8,0.0075]
[1736545586511,0.05426596,3272.0,3271.8,0.0075]
[1736545586711,0.8079,3272.4,3271.8,0.0075]
[1736545586945,0.05424234,3271.9,3271.8,0.0075]
[1736545587140,0.8079,3272.4,3271.8,0.0075]
[1736545587310,0.05424234,3271.9,3271.8,0.0075]
[1736545587505,0.8079,3272.4,3271.7,0.55]
[1736545587712,0.05424234,3271.9,3271.7,0.55]
[1736545587912,3.8638,3272.4,3271.8,0.0075]
[1736545593596,0.7741,3272.3,3271.4,0.8179]
[1736545593745,3.83042,3272.0,3271.2,1.0339]
[1736545594082,3.83042,3272.0,3271.3,0.5575]
[1736545595975,3.83042,3272.0,3271.3,0.58806522]
[1736545598060,3.83042,3272.0,3271.3,0.5575]
[1736545598386,3.83042,3272.0,3271.5,0.5575]
[1736545598564,3.83042,3272.0,3271.5,0.0075]
[1736545598966,3.83042,3272.0,3271.4,0.0075]
[1736545600903,0.05449956,3271.9,3271.4,0.0075]
[1736545606438,3.11081956,3271.9,3271.4,0.0075]
[1736545607728,0.05449956,3271.9,3271.4,0.0075]
[1736545611710,0.05449956,3271.9,3271.6,0.55]
[1736545611993,4.26857222,3272.1,3271.6,0.55]
[1736545612199,0.05412726,3272.0,3271.6,0.55]
[1736545616516,0.05412726,3272.0,3271.7,0.0075]
[1736545616674,0.05412726,3272.0,3271.9,1.3552]
[1736545616876,3.05574,3272.6,3271.9,1.79942499]
[1736545617115,0.05412349,3272.0,3271.9,1.79942499]
[1736545617332,0.7872,3272.7,3271.9,1.79942499]
[1736545617809,0.05451224,3272.6,3271.9,1.79942499]
[1736545619997,0.05451224,3272.6,3272.2,0.7806]
[1736545620210,0.05451224,3272.6,3272.4,0.0075]
[1736545620418,2.56026505,3273.3,3272.6,0.55]
[1736545620419,3.05519,3273.2,3272.6,0.55]
[1736545620617,0.766,3273.3,3272.6,0.55]
[1736545620814,5.38,3273.4,3272.7,0.0075]
[1736545620972,5.61503505,3273.6,3272.9,0.0075]
[1736545621334,3.05486,3273.5,3272.9,0.0075]
[1736545624899,3.82068,3273.7,3272.9,0.0075]
[1736545625573,3.05474,3273.6,3272.9,0.0075]
[1736545626435,0.766,3273.7,3272.9,0.0075]
[1736545626436,3.05453,3273.9,3273.2,0.819]
[1736545626576,3.05453,3273.9,3273.3,0.5575]
[1736545627303,0.7777,3274.0,3273.3,0.5575]
[1736545627513,3.05456,3273.8,3273.3,0.5575]
[1736545630226,0.7777,3274.0,3273.3,0.5575]
[1736545630424,3.05467,3273.7,3273.3,0.5575]
[1736545630926,0.05605447,3273.6,3273.3,0.5575]
[1736545640804,0.05605447,3273.6,3273.5,0.5575]
[1736545641009,0.05605447,3273.6,3273.5,1.36254579]
[1736545641213,3.05398,3274.5,3273.7,0.5575]
[1736545641417,2.00878416,3274.6,3273.9,0.5575]
[1736545641759,0.05706166,3274.5,3273.9,0.5575]
[1736545642090,0.05706166,3274.5,3273.9,0.99921723]
[1736545642352,1.21118416,3274.4,3273.9,0.5575]
[1736545642754,0.05680276,3274.3,3273.9,0.5575]
[1736545642956,1.21118416,3274.2,3273.9,0.55]
[1736545643398,0.05667333,3274.1,3273.9,0.55]
[1736545643895,3.05399,3274.4,3273.9,0.55]
[1736545644078,0.05662426,3274.0,3273.9,0.55]
[1736545644278,3.05399,3274.4,3273.9,0.55]
[1736545644461,0.05681841,3274.3,3273.9,0.55]
[1736545656134,0.05681841,3274.3,3273.0,5.25]
[1736545656135,0.8178,3274.2,3273.0,5.25]
[1736545656365,3.05439,3274.0,3273.1,0.7902]
[1736545656505,3.05439,3274.0,3273.3,0.0075]
[1736545656849,0.05701631,3273.9,3273.3,0.0075]
[1736545658037,3.11148631,3273.9,3273.3,0.0075]
[1736545660029,3.35189269,3273.8,3273.1,0.7902]
[1736545660227,3.05475,3273.6,3272.7,0.8012]
[1736545660748,0.05649563,3273.5,3272.8,0.5575]
[1736545663547,6.40647269,3273.8,3272.8,0.5575]
[1736545663753,0.05598196,3273.4,3272.8,0.5575]
[1736545663912,6.40647269,3273.8,3273.0,0.5575]
[1736545664114,0.05606044,3273.3,3273.0,0.0075]
[1736545664331,6.40647269,3273.8,3273.0,0.0075]
[1736545664529,0.05602937,3273.2,3272.9,0.0075]
[1736545664944,6.40647269,3273.8,3272.9,0.0075]
[1736545665154,0.05596462,3273.1,3272.9,0.0075]
[1736545665316,6.40647269,3273.8,3272.9,0.0075]
[1736545665718,0.0563531,3273.7,3272.9,0.0075]
[1736545673262,1.26762694,3273.7,3272.9,0.0075]
[1736545675893,1.26762694,3273.7,3273.1,0.55]
[1736545678698,0.0563531,3273.7,3273.2,0.0075]
[1736545678871,0.0563531,3273.7,3273.4,0.5575]
[1736545679193,10.40767384,3274.2,3273.4,0.5575]
[1736545679398,0.05600703,3273.6,3273.4,0.5575]
[1736545679593,10.40767384,3274.2,3273.4,0.5575]
[1736545679753,0.05594228,3273.5,3273.4,0.5575]
[1736545679954,10.40767384,3274.2,3273.4,0.998009]
[1736545680167,0.05594228,3273.5,3273.4,0.998009]
[1736545680459,7.35347384,3274.2,3273.6,0.55]
[1736545680660,6.59127384,3274.2,3273.6,0.55]
[1736545680861,5.38,3274.2,3273.6,0.55]
[1736545681069,5.38,3274.2,3273.7,0.0075]
[1736545681404,0.7622,3274.5,3273.9,0.5575]
[1736545681896,1.21127384,3274.4,3273.9,0.5575]
[1736545683374,0.7622,3274.5,3273.9,0.5575]
[1736545689710,3.05383,3274.6,3273.2,3.8163]
[1736545689711,0.7567,3274.3,3273.2,3.8163]
[1736545689910,6.81107,3274.0,3273.2,0.8163]
[1736545690706,3.05457,3273.8,3273.2,0.8163]
[1736545690906,0.05669562,3273.7,3273.2,0.8163]
[1736545691520,0.05669562,3273.7,3273.3,0.55]
[1736545691818,3.05457,3273.8,3273.3,0.55]
[1736545692020,0.05663088,3273.6,3273.3,0.55]
[1736545692194,3.8111,3274.0,3273.3,0.55]
[1736545692522,0.05656614,3273.5,3273.3,0.55]
[1736545692728,0.0565014,3273.4,3273.3,0.5575]
[1736545693820,3.8111,3274.0,3273.3,0.5575]
[1736545694029,0.0565014,3273.4,3273.3,0.5575]
[1736545694233,3.8111,3274.0,3273.3,0.5575]
[1736545694430,0.0565014,3273.4,3273.3,0.5575]
[1736545694732,3.8111,3274.0,3273.3,0.5575]
[1736545695437,0.05682508,3273.9,3273.3,0.5575]
[1736545695638,0.05682508,3273.9,3273.5,0.55]
[1736545695841,0.05682508,3273.9,3273.8,4.36825]
[1736545696138,0.7927,3275.0,3274.2,0.5575]
[1736545696339,5.38,3275.1,3274.4,0.55]
[1736545696499,0.04977179,3274.9,3274.5,0.0075]
[1736545696695,0.7927,3275.5,3274.6,0.0075]
[1736545697036,5.38,3275.6,3274.1,0.7562]
[1736545697037,0.7927,3275.3,3274.1,0.7562]
[1736545697191,0.7927,3275.3,3273.4,3.05484]
[1736545697192,0.7927,3274.6,3273.5,0.7562]
[1736545697398,0.7927,3274.6,3273.6,0.5575]
[1736545697628,0.04726032,3274.5,3273.6,0.5575]
[1736545698799,0.7927,3274.6,3273.6,0.5575]
[1736545699001,0.7927,3274.6,3273.8,1.3651]
[1736545699201,5.38,3274.7,3273.8,1.3651]
[1736545699401,0.04712862,3274.5,3274.0,0.55]
[1736545699621,0.04719332,3274.6,3274.0,0.55]
[1736545699827,0.04706391,3274.4,3273.9,0.55]
[1736545700002,5.38,3274.7,3273.9,0.55]
[1736545700202,0.0469992,3274.3,3273.9,0.55]
[1736545700399,5.38,3274.7,3273.9,0.991963]
[1736545700603,0.04693448,3274.2,3273.9,0.991963]
[1736545700835,5.38,3274.7,3273.9,0.991963]
[1736545701039,0.0468921,3274.1,3273.9,0.991963]
[1736545701241,6.1374,3274.8,3273.9,0.991963]
[1736545701448,6.1374,3274.8,3274.0,0.4861593]
[1736545701646,0.7574,3274.8,3274.1,0.0075]
[1736545701821,5.38,3275.1,3274.2,1.3576]
[1736545702140,5.38,3275.1,3274.2,4.41177]
[1736545702339,5.38,3275.1,3274.2,4.85600134]
[1736545702548,5.38,3275.1,3274.2,1.80183134]
[1736545702847,5.38,3275.1,3274.2,1.3576]
[1736545703146,3.88521,3274.7,3273.7,0.8024]
[1736545703443,0.8315,3274.7,3273.8,0.55]
[1736545704057,3.8315,3274.7,3273.8,0.55]
[1736545706142,0.04777182,3274.6,3273.8,0.55]
[1736545706712,0.7892,3274.4,3273.5,0.7515]
[1736545706907,3.7892,3274.4,3273.5,0.7515]
[1736545707136,0.047627,3274.3,3273.6,0.55]
[1736545709112,0.047627,3274.3,3273.8,1.3831]
[1736545709447,5.38,3274.5,3273.8,4.47561604]
[1736545709633,0.04727059,3274.2,3273.8,4.47561604]
[1736545709840,5.38,3274.5,3273.8,4.92317764]
[1736545710036,0.04720587,3274.1,3273.8,4.92317764]
[1736545710357,5.38,3274.9,3273.8,4.92317764]
[1736545710509,5.38,3274.9,3273.8,4.44507]
[1736545711062,3.04765882,3274.8,3273.8,4.44507]
[1736545711245,0.04765882,3274.8,3273.8,4.44507]
[1736545711619,0.04765882,3274.8,3273.8,3.61197]
[1736545711919,0.04765882,3274.8,3274.0,0.5575]
[1736545712558,0.04765882,3274.8,3274.2,0.5575]
[1736545712851,0.04765882,3274.8,3274.6,0.55]
[1736545713158,5.38,3275.3,3274.6,0.55]
[1736545713715,0.04785451,3275.2,3274.6,0.55]
[1736545714556,0.04785451,3275.2,3274.8,0.55]
[1736545714910,5.38,3275.5,3274.8,0.55]
[1736545715154,0.04779458,3275.1,3274.8,0.55]
[1736545715324,0.0477299,3275.0,3274.8,0.55]
[1736545715525,5.38,3275.5,3274.8,0.55]
[1736545715730,0.04849396,3275.4,3274.8,0.55]
[1736545717026,0.04849396,3275.4,3274.8,0.985657]
[1736545717922,0.04849396,3275.4,3275.0,0.55]
[1736545718119,5.38,3275.8,3275.3,0.55]
[1736545718362,0.04674478,3275.7,3275.3,0.55]
[1736545718726,0.0466876,3275.6,3275.3,0.55]
[1736545718926,5.38,3275.8,3275.3,0.55]
[1736545719332,0.0464724,3275.7,3275.3,0.55]
[1736545719668,5.38,3275.8,3275.3,0.55]
[1736545719869,0.04714261,3275.6,3275.3,0.55]
[1736545720041,0.04720727,3275.7,3275.3,0.55]
[1736545720241,0.04707795,3275.5,3275.3,0.55]
[1736545720443,5.38,3275.8,3275.3,0.55]
[1736545720664,0.04701329,3275.4,3275.3,0.55]
[1736545720867,5.38,3275.8,3275.3,0.55]
[1736545721072,0.04701329,3275.4,3275.3,0.55]
[1736545721393,3.36607152,3275.6,3274.8,0.7626]
[1736545721608,2.55777152,3275.3,3274.8,0.7626]
[1736545721749,2.55777152,3275.3,3274.4,3.05397]
[1736545721944,0.04713614,3275.2,3274.6,0.5575]
[1736545723187,0.04640582,3275.1,3274.6,0.5575]
[1736545723345,3.05312,3275.4,3274.6,0.5575]
[1736545723543,0.39471443,3275.3,3274.6,0.5575]
[1736545723855,2.95248595,3275.3,3274.6,0.5575]
[1736545727558,0.39471443,3275.3,3274.6,0.5575]
[1736545736492,0.7724,3275.2,3274.6,0.55]
[1736545736867,0.04713966,3275.1,3274.6,0.55]
[1736545737066,0.04713966,3275.1,3274.4,0.0075]
[1736545737295,0.7724,3274.9,3274.1,0.7656]
[1736545737476,2.55777152,3274.7,3273.9,0.7656]
[1736545737683,2.55777152,3274.7,3274.0,0.0075]
[1736545737981,0.0467652,3274.6,3274.0,0.0075]
[1736545738800,0.0467652,3274.6,3274.0,0.5575]
[1736545740658,0.7724,3274.5,3274.0,0.5575]
[1736545740859,0.7724,3274.5,3273.5,0.7656]
[1736545741165,0.04663581,3274.4,3273.5,0.7656]